{"text_format":"1","workbook":"xlsx","n_sheets":10,"sheets":["Reeks1","Reeks2A","Reeks2B","Reeks3","Reeks4","Kal.R1","Kal.R2A","Kal.R2B","Kal.R3","Kal.R4"],"not_rendered":{"charts":0,"images":0,"macros":0,"external_links":0,"defined_names":0,"comments":0,"pivot_tables":0},"unopened":[],"bounds":{"document_bytes":16777216,"sheet_cells":100000,"rows_first":2000,"rows_last":500,"rows_between":2000,"halvings":0,"cell_chars":16384,"cell_head_chars":4096},"cells_cut":0,"cells_raw":0,"read":"whole","date_system":"1900"}

{"sheet":"Reeks1","index":0,"n_rows":32,"n_cols":24,"rows_kept":32,"cut":false,"hidden":false,"merged":[]}
[null,"2011 - 2012 CK"]
[null,null,"BJ",null,"DB",null,"DM",null,"GJ",null,"MJ",null,"RR",null,"SH",null,"SF",null,"TA",null,"VJ"]
[null,"SPELERS",1,null,2,null,3,null,4,null,5,null,6,null,7,null,8,null,9,null,10,null,"Par","Ptn"]
[null,null,"W","Z","W","Z","W","Z","W","Z","W","Z","W","Z","W","Z","W","Z","W","Z","W","Z"]
[1,"Busschots J.",null,null,2,3,3,3,3,3,3,2,3,3,3,1,3,3,2,1,2,3,{"$f":"COUNT(C5:V5)","v":18},{"$f":"SUM(C5:V5)","v":46}]
[2,"Dardha B.",1,2,null,null,2,3,3,3,3,3,3,3,3,3,3,2,1,1,3,3,18,45]
[3,"De Meyer J.",1,1,1,2,null,null,1,3,1,2,2,1,3,3,1,1,2,1,1,1,18,28]
[4,"Gelens J.",1,1,1,1,1,3,null,null,2,3,2,1,2,1,1,3,1,1,1,1,18,27]
[5,"Meulenbergs J.",2,1,1,1,2,3,1,2,null,null,2,3,2,3,2,3,1,1,3,3,18,36]
[6,"Robbé R.",0,0,1,1,3,2,3,2,1,2,null,null,2,1,3,3,1,1,2,3,18,31]
[7,"Serruys H.",3,1,1,1,1,1,3,2,1,2,3,2,null,null,3,2,1,1,3,2,18,33]
[8,"Stryckers F.",1,1,2,1,3,3,1,3,1,2,1,1,2,1,null,null,1,2,2,3,18,31]
[9,"Talon A.",3,2,3,3,3,2,3,3,3,3,3,3,3,3,2,3,null,null,3,3,18,51]
[10,"Verbert J.",1,2,1,1,3,3,3,3,1,1,1,2,2,1,1,2,1,1,null,null,18,30]
[]
[]
[]
[null,"REEKS 1",null,null,"Pa",null,"Pt"]
[1,"Talon A.",null,null,{"$f":"$W$13","v":18},null,{"$f":"$X$13","v":51}]
[2,"Busschots J.",null,null,{"$f":"$W$5","v":18},null,{"$f":"$X$5","v":46}]
[3,"Dardha B.",null,null,{"$f":"$W$6","v":18},null,{"$f":"$X$6","v":45}]
[4,"Meulenbergs J.",null,null,{"$f":"$W$9","v":18},null,{"$f":"$X$9","v":36}]
[5,"Serruys H.",null,null,{"$f":"$W$11","v":18},null,{"$f":"$X$11","v":33}]
[6,"Robbé R.",null,null,{"$f":"$W$10","v":18},null,{"$f":"$X$10","v":31}]
[7,"Stryckers F.",null,null,{"$f":"$W$12","v":18},null,{"$f":"$X$12","v":31}]
[8,"Verbert J.",null,null,{"$f":"$W$14","v":18},null,{"$f":"$X$14","v":30}]
[9,"De Meyer J.",null,null,{"$f":"$W$7","v":18},null,{"$f":"$X$7","v":28}]
[10,"Gelens J.",null,null,{"$f":"$W$8","v":18},null,{"$f":"$X$8","v":27}]
[]
[]
[]
[{"$f":"SUM(E19:E30)","v":180},"aantal partijen"]

{"sheet":"Reeks2A","index":1,"n_rows":32,"n_cols":24,"rows_kept":32,"cut":false,"hidden":false,"merged":[]}
[null,"2011 - 2012 CK"]
[null,null,"BH",null,"CC",null,"CF",null,"DG",null,"MM",null,"NJ",null,"PH",null,"RP",null,"RJ",null,"VM"]
[null,"SPELERS",1,null,2,null,3,null,4,null,5,null,6,null,7,null,8,null,9,null,10,null,"Par","Ptn"]
[null,null,"W","Z","W","Z","W","Z","W","Z","W","Z","W","Z","W","Z","W","Z","W","Z","W","Z"]
[1,"Berghs H.",null,null,2,3,3,1,3,3,3,2,1,3,3,3,1,2,3,1,1,1,{"$f":"COUNT(C5:V5)","v":18},{"$f":"SUM(C5:V5)","v":39}]
[2,"Cop C.",1,2,null,null,2,3,3,2,3,2,3,3,3,3,2,2,2,3,3,2,18,44]
[3,"Crauwels F.",3,1,1,2,null,null,2,2,3,2,2,2,3,1,1,2,2,1,3,3,18,36]
[4,"De Groot J.",1,1,2,1,2,2,null,null,3,1,2,2,3,3,1,2,2,2,1,3,18,34]
[5,"Mathé M.",2,1,2,1,2,1,3,1,null,null,3,3,3,3,2,1,3,2,2,3,18,38]
[6,"Neefs J.",1,3,1,1,2,2,2,2,1,1,null,null,2,2,2,2,1,2,1,1,18,29]
[7,"Pynaerts H",1,1,1,1,3,1,1,1,1,1,2,2,null,null,2,2,1,2,1,1,18,25]
[8,"Renty  P.",2,3,2,2,2,3,2,3,3,2,2,2,2,2,null,null,2,1,2,3,18,40]
[9,"Roofthoofd J.",3,1,1,2,3,2,2,2,2,1,2,3,2,3,3,2,null,null,1,2,18,37]
[10,"Verachtert M.",3,3,2,1,1,1,1,3,1,2,3,3,3,3,1,2,2,3,null,null,18,38]
[]
[]
[]
[null,"REEKS 2A",null,null,"Pa",null,"Pt"]
[1,"Cop C.",null,null,{"$f":"$W$6","v":18},null,{"$f":"$X$6","v":44}]
[2,"Renty P.",null,null,{"$f":"$W$12","v":18},null,{"$f":"$X$12","v":40}]
[3,"Berghs H.",null,null,{"$f":"$W$5","v":18},null,{"$f":"$X$5","v":39}]
[4,"Mathé M.",null,null,{"$f":"$W$9","v":18},null,{"$f":"$X$9","v":38}]
[5,"Verachtert M.",null,null,{"$f":"$W$14","v":18},null,{"$f":"$X$14","v":38}]
[6,"Roofthoofd J.",null,null,{"$f":"$W$13","v":18},null,{"$f":"$X$13","v":37}]
[7,"Crauwels F.",null,null,{"$f":"$W$7","v":18},null,{"$f":"$X$7","v":36}]
[8,"De Groot J.",null,null,{"$f":"$W$8","v":18},null,{"$f":"$X$8","v":34}]
[9,"Neefs J.",null,null,{"$f":"$W$10","v":18},null,{"$f":"$X$10","v":29}]
[10,"Pynaerts H.",null,null,{"$f":"$W$11","v":18},null,{"$f":"$X$11","v":25}]
[]
[]
[]
[{"$f":"SUM(E19:E30)","v":180},"aantal partijen"]

{"sheet":"Reeks2B","index":2,"n_rows":32,"n_cols":24,"rows_kept":32,"cut":false,"hidden":false,"merged":[]}
[null,"2011 - 2012 CK"]
[null,null,"DJ",null,"GH",null,"GL",null,"KJ",null,"KK",null,"LL",null,"MS",null,"SJ",null,"VD"]
[null,"SPELERS",1,null,2,null,3,null,4,null,5,null,null,null,7,null,8,null,9,null,null,null,"Par","Ptn"]
[null,null,"W","Z","W","Z","W","Z","W","Z","W","Z",null,null,"W","Z","W","Z","W","Z"]
[1,"De Jonghe J.",null,null,1,1,3,1,1,1,2,3,1,2,1,1,1,2,1,1,null,null,{"$f":"COUNT(C5:V5)","v":16},{"$f":"SUM(C5:V5)","v":23}]
[2,"Geerts H.",3,3,null,null,2,1,3,3,3,3,3,3,2,1,3,3,3,1,null,null,16,40]
[3,"Geylen L.",3,1,3,2,null,null,3,3,1,1,2,2,3,2,3,3,1,2,null,null,16,35]
[4,"Kerkhofs J.",3,3,1,1,1,1,null,null,1,1,0,2,3,3,3,3,3,3,null,null,16,32]
[5,"Kuti K.",1,2,1,1,3,3,3,3,null,null,3,2,3,3,3,2,1,1,null,null,16,35]
[6,"Lemmens L.",2,3,1,1,2,2,2,3,2,1,null,null,2,1,2,2,1,1,null,null,16,28]
[7,"Mertens S.",3,3,3,2,2,1,1,1,1,1,3,2,null,null,3,2,2,1,null,null,16,31]
[8,"Soetewey J.",2,3,1,1,1,1,1,1,2,1,2,2,2,1,null,null,1,1,null,null,16,23]
[9,"V. Dingenen M.",3,3,3,1,2,3,1,1,3,3,3,3,3,2,3,3,null,null,null,null,16,40]
[]
[]
[]
[]
[null,"REEKS 2B",null,null,"Pa",null,"Pt"]
[1,"V. Dingenen M.",null,null,{"$f":"$W$13","v":16},null,{"$f":"$X$13","v":40}]
[2,"Geerts H.",null,null,{"$f":"$W$6","v":16},null,{"$f":"$X$6","v":40}]
[3,"Kuti K.",null,null,{"$f":"$W$9","v":16},null,{"$f":"$X$9","v":35}]
[4,"Geylen L.",null,null,{"$f":"$W$7","v":16},null,{"$f":"$X$7","v":35}]
[5,"Kerkhofs J.",null,null,{"$f":"$W$8","v":16},null,{"$f":"$X$8","v":32}]
[6,"Mertens S.",null,null,{"$f":"$W$11","v":16},null,{"$f":"$X$11","v":31}]
[7,"Lemmens L.",null,null,{"$f":"$W$10","v":16},null,{"$f":"$X$10","v":28}]
[8,"De Jonghe J.",null,null,{"$f":"$W$5","v":16},null,{"$f":"$X$5","v":23}]
[9,"Soetewey J.",null,null,{"$f":"$W$12","v":16},null,{"$f":"$X$12","v":23}]
[]
[]
[]
[]
[{"$f":"SUM(E19:E30)","v":144},"aantal partijen"]

{"sheet":"Reeks3","index":3,"n_rows":32,"n_cols":24,"rows_kept":32,"cut":false,"hidden":false,"merged":[]}
[null,"2011 - 2012 CK"]
[null,null,"BR",null,"DP",null,"HR",null,"HF",null,"LD",null,"MJ",null,"MF",null,"ML",null,"VW",null,"WF"]
[null,"SPELERS",1,null,2,null,3,null,4,null,5,null,6,null,7,null,8,null,9,null,10,null,"Par","Ptn"]
[null,null,"W","Z","W","Z","W","Z","W","Z","W","Z","W","Z","W","Z","W","Z","W","Z","W","Z"]
[1,"Brants R.",null,null,1,1,2,null,1,3,1,3,1,1,3,3,3,2,3,2,1,1,{"$f":"COUNT(C5:V5)","v":17},{"$f":"SUM(C5:V5)","v":32}]
[2,"Daponte P.",3,3,null,null,null,1,1,1,2,1,1,2,3,3,1,3,2,2,1,1,17,31]
[3,"Hellemans R.",null,2,3,null,null,null,1,null,null,1,2,null,null,1,2,null,null,3,null,1,9,16]
[4,"Hofman F.",1,3,3,3,null,3,null,null,3,2,2,3,3,3,3,1,3,3,1,3,17,43]
[5,"Lemeire D.",1,3,3,2,3,null,2,1,null,null,3,2,3,3,3,3,3,3,1,1,17,40]
[6,"Meeus J.",3,3,2,3,null,2,1,2,2,1,null,null,1,1,3,1,3,2,1,1,17,32]
[7,"Mertens F.",1,1,1,1,3,null,1,1,1,1,3,3,null,null,3,1,3,3,3,3,17,33]
[8,"Meulemeester L.",2,1,1,3,null,2,3,1,1,1,3,1,3,1,null,null,2,3,1,1,17,30]
[9,"Vingerhoets W.",2,1,2,2,1,null,1,1,1,1,2,1,1,1,1,2,null,null,1,1,17,22]
[10,"Wouters F.",3,3,3,3,3,null,1,3,3,3,3,3,1,1,3,3,3,3,null,null,17,45]
[]
[]
[]
[null,"REEKS 3",null,null,"Pa",null,"Pt",null,"Ma","Pt",null,null,null,null,null,null,null,null,null,null,null,null,null,"%"]
[1,"Wouters F.",null,null,{"$f":"$W$14","v":17},null,{"$f":"$X$14","v":45},null,{"$f":"(E19)*3","v":51},null,null,null,null,null,null,null,null,null,null,null,null,null,null,{"$f":"(G19/E19)*33.3","v":88.147058823529406}]
[2,"Hofman F.",null,null,{"$f":"$W$8","v":17},null,{"$f":"$X$8","v":43},null,51,null,null,null,null,null,null,null,null,null,null,null,null,null,null,84.229411764705873]
[3,"Lemeire D.",null,null,{"$f":"$W$9","v":17},null,{"$f":"$X$9","v":40},null,51,null,null,null,null,null,null,null,null,null,null,null,null,null,null,78.35294117647058]
[4,"Mertens F.",null,null,{"$f":"$W$11","v":17},null,{"$f":"$X$11","v":33},null,51,null,null,null,null,null,null,null,null,null,null,null,null,null,null,64.641176470588235]
[5,"Meeus J.",null,null,{"$f":"$W$10","v":17},null,{"$f":"$X$10","v":32},null,51,null,null,null,null,null,null,null,null,null,null,null,null,null,null,62.682352941176461]
[6,"Brants R.",null,null,{"$f":"$W$5","v":17},null,{"$f":"$X$5","v":32},null,51,null,null,null,null,null,null,null,null,null,null,null,null,null,null,62.682352941176461]
[7,"Daponte P.",null,null,{"$f":"$W$6","v":17},null,{"$f":"$X$6","v":31},null,51,null,null,null,null,null,null,null,null,null,null,null,null,null,null,60.723529411764702]
[8,"Hellemans R.",null,null,{"$f":"$W$7","v":9},null,{"$f":"$X$7","v":16},null,27,null,null,null,null,null,null,null,null,null,null,null,null,null,null,59.199999999999989]
[9,"Meulemeester L.",null,null,{"$f":"$W$12","v":17},null,{"$f":"$X$12","v":30},null,51,null,null,null,null,null,null,null,null,null,null,null,null,null,null,58.764705882352935]
[10,"Vingerhoets W.",null,null,{"$f":"$W$13","v":17},null,{"$f":"$X$13","v":22},null,51,null,null,null,null,null,null,null,null,null,null,null,null,null,null,43.094117647058823]
[]
[]
[]
[{"$f":"SUM(E19:E30)","v":162},"aantal partijen"]

{"sheet":"Reeks4","index":4,"n_rows":34,"n_cols":26,"rows_kept":34,"cut":false,"hidden":false,"merged":[]}
[null,"2011 - 2012 CK"]
[null,null,"BY",null,"IJ",null,"LL",null,"LF",null,"RJ",null,"RW",null,"RC",null,"UD",null,"VH",null,"VR",null,"VP"]
[null,"SPELERS",1,null,2,null,3,null,4,null,5,null,6,null,7,null,8,null,9,null,10,null,11,null,"Par","Ptn"]
[null,null,"W","Z","W","Z","W","Z","W","Z","W","Z","W","Z","W","Z","W","Z","W","Z","W","Z","W","Z"]
[1,"Brack Y.",null,null,1,3,3,3,1,1,3,1,3,3,3,1,3,3,3,3,3,3,3,3,{"$f":"COUNT(C5:X5)","v":20},{"$f":"SUM(C5:X5)","v":50}]
[2,"Ilegems J.",1,3,null,null,3,3,3,3,3,3,3,3,3,1,3,3,3,2,3,3,3,3,20,55]
[3,"Lens L.",1,1,1,1,null,null,1,1,3,1,3,1,1,2,2,1,1,3,3,3,3,1,20,34]
[4,"Leys F.",3,3,1,1,3,3,null,null,1,1,3,3,1,1,3,3,3,1,3,3,1,3,20,44]
[5,"Renders J.",3,1,1,1,3,1,3,3,null,null,3,3,2,1,3,2,1,1,3,3,3,3,20,44]
[6,"Roelants W.",1,1,1,1,3,1,1,1,1,1,null,null,1,1,1,1,1,1,2,3,3,1,20,27]
[7,"Ronken C.",3,0,3,1,2,3,3,3,3,2,3,3,null,null,3,3,3,3,3,3,3,3,20,53]
[8,"Uyt d.Bogaard D.",1,1,1,1,3,2,1,1,2,1,3,3,1,1,null,null,3,1,1,1,3,3,20,34]
[9,"Van D.Branden H.",0,1,2,1,0,3,3,1,3,3,3,3,1,1,3,1,null,null,3,1,0,3,20,36]
[10,"Van Tendeloo R.",1,1,1,1,1,1,1,1,1,1,1,2,1,1,3,3,3,1,null,null,1,1,20,27]
[11,"Vervaeke P.",1,1,1,1,3,1,1,3,1,1,3,1,1,1,1,1,1,3,3,3,null,null,20,32]
[]
[]
[]
[null,"REEKS 4",null,null,"Pa",null,"Pt"]
[1,"Ilegems J.",null,null,{"$f":"$Y$6","v":20},null,{"$f":"$Z$6","v":55}]
[2,"Ronken C.",null,null,{"$f":"$Y$11","v":20},null,{"$f":"$Z$11","v":53}]
[3,"Brack Y.",null,null,{"$f":"$Y$5","v":20},null,{"$f":"$Z$5","v":50}]
[4,"Renders J.",null,null,{"$f":"$Y$9","v":20},null,{"$f":"$Z$9","v":44}]
[5,"Leys F.",null,null,{"$f":"$Y$8","v":20},null,{"$f":"$Z$8","v":44}]
[6,"Van D.Branden H.",null,null,{"$f":"$Y$13","v":20},null,{"$f":"$Z$13","v":36}]
[7,"Uyt d.Bogaard D.",null,null,{"$f":"$Y$12","v":20},null,{"$f":"$Z$12","v":34}]
[8,"Lens L.",null,null,{"$f":"$Y$7","v":20},null,{"$f":"$Z$7","v":34}]
[9,"Vervaeke P.",null,null,{"$f":"$Y$15","v":20},null,{"$f":"$Z$15","v":32}]
[10,"Van Tendeloo R.",null,null,{"$f":"$Y$14","v":20},null,{"$f":"$Z$14","v":27}]
[11,"Roelants W.",null,null,{"$f":"$Y$10","v":20},null,{"$f":"$Z$10","v":27}]
[]
[]
[]
[{"$f":"SUM(E20:E32)","v":220},"aantal partijen"]

{"sheet":"Kal.R1","index":5,"n_rows":89,"n_cols":12,"rows_kept":89,"cut":false,"hidden":false,"merged":[]}
[null,"REEKS 1",null,"2011 - 2012 CK"]
[]
[null,"Ronde 1",null,"9/11/2011.",null,null,null,"Ronde 12",null,"29/02/2012."]
[1,"Dardha B.",null,"1 bye ",null,null,null,"1 bye ",null,"Dardha B."]
[2,"Busschots J.",null,"Verbert J.",2,2,null,"Verbert J.",null,"Busschots J.",1,3]
[3,"De Meyer J.",null,"Talon A.",2,2,null,"Talon A.",null,"De Meyer J.",3,1]
[4,"Gelens J.",null,"Stryckers F.",1,3,null,"Stryckers F.",null,"Gelens J.",1,3]
[5,"Ismailaj B.",null,"Serruys H.",0,0,null,"Serruys H.",null,"2 bye "]
[6,"Meulenbergs J.",null,"Robbé R.",2,2,null,"Robbé R.",null,"Meulenbergs J.",1,3]
[null,null,null,null,null,null,null," "]
[null,"Ronde 2",null,"16/11/2011.",null,null,null,"Ronde 13",null,"7/03/2012."]
[1,"Robbé R.",null,"1 bye ",null,null,null,"1 bye ",null,"Robbé R."]
[2,"Serruys H.",null,"Meulenbergs J.",1,3,null,"Meulenbergs J.",null,"Serruys H.",2,2]
[3,"Stryckers F.",null,"Ismailaj B.",0,0,null,"2 bye ",null,"Stryckers F."]
[4,"Talon A.",null,"Gelens J.",3,1,null,"Gelens J.",null,"Talon A.",1,3]
[5,"Verbert J.",null,"De Meyer J.",3,1,null,"De Meyer J.",null,"Verbert J.",1,3]
[6,"Dardha B.",null,"Busschots J.",1,3,null,"Busschots J.",null,"Dardha B.",2,2]
[]
[null,"Ronde 3",null,"23/11/2011.",null,null,null,"Ronde 14",null,"14/03/2012."]
[1,"Busschots J.",null,"1 bye ",null,null,null,"1 bye ",null,"Busschots J."]
[2,"De Meyer J.",null,"Dardha B.",1,3,null,"Dardha B.",null,"De Meyer J.",2,2]
[3,"Gelens J.",null,"Verbert J.",1,3,null,"Verbert J.",null,"Gelens J.",3,1]
[4,"Ismailaj B.",null,"Talon A.",0,0,null,"Talon A.",null,"2 bye "]
[5,"Meulenbergs J.",null,"Stryckers F.",2,2,null,"Stryckers F.",null,"Meulenbergs J.",1,3]
[6,"Robbé R.",null,"Serruys H.",2,2,null,"Serruys H.",null,"Robbé R.",3,1]
[]
[null,"Ronde 4",null,"30/11/2011.",null,null,null,"Ronde 15",null,"21/03/2012."]
[1,"Serruys H.",null,"1 bye ",null,null,null,"1 bye ",null,"Serruys H."]
[2,"Stryckers F.",null,"Robbé R.",1,3,null,"Robbé R.",null,"Stryckers F.",3,1]
[3,"Talon A.",null,"Meulenbergs J.",3,1,null,"Meulenbergs J.",null,"Talon A.",1,3]
[4,"Verbert J.",null,"Ismailaj B.",0,0,null,"2 bye ",null,"Verbert J."]
[5,"Dardha B.",null,"Gelens J.",3,1,null,"Gelens J.",null,"Dardha B.",1,3]
[6,"Busschots J.",null,"De Meyer J.",3,1,null,"De Meyer J.",null,"Busschots J.",1,3]
[]
[null,"Ronde 5",null,"14/12/2011.",null,null,null,"Ronde 16",null,"4/04/2012."]
[1,"De Meyer J.",null,"1 bye ",null,null,null,"1 bye ",null,"De Meyer J."]
[2,"Gelens J.",null,"Busschots J.",1,3,null,"Busschots J.",null,"Gelens J.",3,1]
[3,"Ismailaj B.",null,"Dardha B.",0,0,null,"Dardha B.",null,"2 bye "]
[4,"Meulenbergs J.",null,"Verbert J.",3,1,null,"Verbert J.",null,"Meulenbergs J.",1,3]
[5,"Robbé R.",null,"Talon A.",1,3,null,"Talon A.",null,"Robbé R.",3,1]
[6,"Serruys H.",null,"Stryckers F.",3,1,null,"Stryckers F.",null,"Serruys H.",2,2]
[]
[null,"Ronde 6",null,"21/12/2011.",null,null,null,"Ronde 17",null,"11/04/2012."]
[1,"Stryckers F.",null,"1 bye ",null,null,null,"1 bye ",null,"Stryckers F."]
[2,"Talon A.",null,"Serruys H.",3,1,null,"Serruys H.",null,"Talon A.",1,3]
[3,"Verbert J.",null,"Robbé R.",1,3,null,"Robbé R.",null,"Verbert J.",2,2]
[4,"Dardha B.",null,"Meulenbergs J.",3,1,null,"Meulenbergs J.",null,"Dardha B.",1,3]
[5,"Busschots J.",null,"Ismailaj B.",0,0,null,"2 bye ",null,"Busschots J."]
[6,"De Meyer J.",null,"Gelens J.",1,3,null,"Gelens J.",null,"De Meyer J.",1,3]
[]
[null,"Ronde 7",null,"11/01/2012.",null,null,null,"Ronde 18",null,"18/04/2012."]
[1,"Gelens J.",null,"1 bye ",null,null,null,"1 bye ",null,"Gelens J."]
[2,"Ismailaj B.",null,"De Meyer J.",0,0,null,"De Meyer J.",null,"2 bye "]
[3,"Meulenbergs J.",null,"Busschots J.",2,2,null,"Busschots J.",null,"Meulenbergs J.",3,1]
[4,"Robbé R.",null,"Dardha B.",1,3,null,"Dardha B.",null,"Robbé R.",3,1]
[5,"Serruys H.",null,"Verbert J.",3,1,null,"Verbert J.",null,"Serruys H.",2,2]
[6,"Stryckers F.",null,"Talon A.",1,3,null,"Talon A.",null,"Stryckers F.",2,2]
[]
[null,"Ronde 8",null,"18/01/2012.",null,null,null,"Ronde 19",null,"25/04/2012."]
[1,"Talon A.",null,"1 bye ",null,null,null,"1 bye ",null,"Talon A."]
[2,"Verbert J.",null,"Stryckers F.",1,3,null,"Stryckers F.",null,"Verbert J.",2,2]
[3,"Dardha B.",null,"Serruys H.",3,1,null,"Serruys H.",null,"Dardha B.",1,3]
[4,"Busschots J.",null,"Robbé R.",3,0,null,"Robbé R.",null,"Busschots J.",0,3]
[5,"De Meyer J.",null,"Meulenbergs J.",1,3,null,"Meulenbergs J.",null,"De Meyer J.",2,2]
[6,"Gelens J.",null,"Ismailaj B.",0,0,null,"2 bye ",null,"Gelens J."]
[]
[null,"Ronde 9",null,"25/01/2012.",null,null,null,"Ronde 20",null,"9/05/2012."]
[1,"Ismailaj B.",null,"1 bye ",null,null,null,"1 bye ",null,"2 bye "]
[2,"Meulenbergs J.",null,"Gelens J.",1,3,null,"Gelens J.",null,"Meulenbergs J.",2,2]
[3,"Robbé R.",null,"De Meyer J.",3,1,null,"De Meyer J.",null,"Robbé R.",2,2]
[4,"Serruys H.",null,"Busschots J.",3,1,null,"Busschots J.",null,"Serruys H.",3,1]
[5,"Stryckers F.",null,"Dardha B.",2,2,null,"Dardha B.",null,"Stryckers F.",3,1]
[6,"Talon A.",null,"Verbert J.",3,1,null,"Verbert J.",null,"Talon A.",3,1]
[]
[null,"Ronde 10",null,"8/02/2011.",null,null,null,"Ronde 21",null,"16/05/2012."]
[1,"Verbert J.",null,"1 bye ",null,null,null,"1 bye ",null,"Verbert J."]
[2,"Dardha B.",null,"Talon A.",1,3,null,"Talon A.",null,"Dardha B.",3,1]
[3,"Busschots J.",null,"Stryckers F.",3,1,null,"Stryckers F.",null,"Busschots J.",1,3]
[4,"De Meyer J.",null,"Serruys H.",3,1,null,"Serruys H.",null,"De Meyer J.",1,3]
[5,"Gelens J.",null,"Robbé R.",2,2,null,"Robbé R.",null,"Gelens J.",3,1]
[6,"Ismailaj B.",null,"Meulenbergs J.",0,0,null,"Meulenbergs J.",null,"2 bye "]
[]
[null,"Ronde 11",null,"15/02/2012.",null,null,null,"Ronde 22",null,"30/05/2012."]
[1,"Meulenbergs J.",null,"1 bye ",null,null,null,"1 bye ",null,"Meulenbergs J."]
[2,"Robbé R.",null,"Ismailaj B.",0,0,null,"2 bye ",null,"Robbé R."]
[3,"Serruys H.",null,"Gelens J.",3,1,null,"Gelens J.",null,"Serruys H.",2,2]
[4,"Stryckers F.",null,"De Meyer J.",3,1,null,"De Meyer J.",null,"Stryckers F.",1,3]
[5,"Talon A.",null,"Busschots J.",3,1,null,"Busschots J.",null,"Talon A.",2,2]
[6,"Verbert J.",null,"Dardha B.",1,3,null,"Dardha B.",null,"Verbert J.",3,1]

{"sheet":"Kal.R2A","index":6,"n_rows":64,"n_cols":12,"rows_kept":64,"cut":false,"hidden":false,"merged":[]}
[null,"REEKS 2A",null,"2011 - 2012 CK"]
[]
[null,"Ronde 1",null,"9/11/2011.",null,null,null,"Ronde 10",null,"8/02/2011."]
[1,"Berghs H.",null,"Verachtert M.",1,3,null,"Verachtert M.",null,"Berghs H.",3,1]
[2,"Cop C.",null,"Pynaerts H.",3,1,null,"Pynaerts H.",null,"Cop C.",1,3]
[3,"Crauwels F.",null,"Renty P.",1,3,null,"Renty P.",null,"Crauwels F.",2,2]
[4,"Roofthoofd J.",null,"Neefs J.",2,2,null,"Neefs J.",null,"Roofthoofd J.",1,3]
[5,"De Groot J.",null,"Mathé M.",3,1,null,"Mathé M.",null,"De Groot J.",3,1]
[]
[null,"Ronde 2",null,"16/11/2011.",null,null,null,"Ronde 11",null,"15/02/2012."]
[1,"Verachtert M.",null,"Mathé M.",1,3,null,"Mathé M.",null,"Verachtert M.",2,2]
[2,"Neefs J.",null,"De Groot J.",2,2,null,"De Groot J.",null,"Neefs J.",2,2]
[3,"Renty P.",null,"Roofthoofd J.",2,2,null,"Roofthoofd J.",null,"Renty P.",3,1]
[4,"Pynaerts H.",null,"Crauwels F.",3,1,null,"Crauwels F.",null,"Pynaerts H.",3,1]
[5,"Berghs H.",null,"Cop C.",2,2,null,"Cop C.",null,"Berghs H.",1,3]
[]
[null,"Ronde 3",null,"23/11/2011.",null,null,null,"Ronde 12",null,"29/02/2012."]
[1,"Cop C.",null,"Verachtert M.",3,1,null,"Verachtert M.",null,"Cop C.",2,2]
[2,"Crauwels F.",null,"Berghs H.",3,1,null,"Berghs H.",null,"Crauwels F.",3,1]
[3,"Roofthoofd J.",null,"Pynaerts H.",2,2,null,"Pynaerts H.",null,"Roofthoofd J.",1,3]
[4,"De Groot J.",null,"Renty P.",1,3,null,"Renty P.",null,"De Groot J.",2,2]
[5,"Mathé M.",null,"Neefs J.",3,1,null,"Neefs J.",null,"Mathé M.",1,3]
[]
[null,"Ronde 4",null,"30/11/2011.",null,null,null,"Ronde 13",null,"7/03/2012."]
[1,"Verachtert M.",null,"Neefs J.",3,1,null,"Neefs J.",null,"Verachtert M.",1,3]
[2,"Renty P.",null,"Mathé M.",3,1,null,"Mathé M.",null,"Renty P.",2,2]
[3,"Pynaerts H.",null,"De Groot J.",1,3,null,"De Groot J.",null,"Pynaerts H.",3,1]
[4,"Berghs H.",null,"Roofthoofd J.",3,1,null,"Roofthoofd J.",null,"Berghs H.",3,1]
[5,"Cop C.",null,"Crauwels F.",2,2,null,"Crauwels F.",null,"Cop C.",1,3]
[]
[null,"Ronde 5",null,"14/12/2011.",null,null,null,"Ronde 14",null,"14/03/2012."]
[1,"Crauwels F.",null,"Verachtert M.",3,1,null,"Verachtert M.",null,"Crauwels F.",1,3]
[2,"Roofthoofd J.",null,"Cop C.",1,3,null,"Cop C.",null,"Roofthoofd J.",2,2]
[3,"De Groot J.",null,"Berghs H.",1,3,null,"Berghs H.",null,"De Groot J.",3,1]
[4,"Mathé M.",null,"Pynaerts H.",3,1,null,"Pynaerts H.",null,"Mathé M.",1,3]
[5,"Neefs J.",null,"Renty P.",2,2,null,"Renty P.",null,"Neefs J.",2,2]
[]
[null,"Ronde 6",null,"21/12/2011.",null,null,null,"Ronde 15",null,"21/03/2012."]
[1,"Verachtert M.",null,"Renty P.",1,3,null,"Renty P.",null,"Verachtert M.",2,2]
[2,"Pynaerts H.",null,"Neefs J.",2,2,null,"Neefs J.",null,"Pynaerts H.",2,2]
[3,"Berghs H.",null,"Mathé M.",3,1,null,"Mathé M.",null,"Berghs H.",2,2]
[4,"Cop C.",null,"De Groot J.",3,1,null,"De Groot J.",null,"Cop C.",2,2]
[5,"Crauwels F.",null,"Roofthoofd J.",2,2,null,"Roofthoofd J.",null,"Crauwels F.",3,1]
[]
[null,"Ronde 7",null,"11/01/2012.",null,null,null,"Ronde 16",null,"4/04/2012."]
[1,"Roofthoofd J.",null,"Verachtert M.",1,3,null,"Verachtert M.",null,"Roofthoofd J.",2,2]
[2,"De Groot J.",null,"Crauwels F.",2,2,null,"Crauwels F.",null,"De Groot J.",2,2]
[3,"Mathé M.",null,"Cop C.",2,2,null,"Cop C.",null,"Mathé M.",3,1]
[4,"Neefs J.",null,"Berghs H.",1,3,null,"Berghs H.",null,"Neefs J.",1,3]
[5,"Renty P.",null,"Pynaerts H.",2,2,null,"Pynaerts H.",null,"Renty P.",2,2]
[]
[null,"Ronde 8",null,"18/01/2012.",null,null,null,"Ronde 17",null,"11/04/2012."]
[1,"Verachtert M.",null,"Pynaerts H.",3,1,null,"Pynaerts H.",null,"Verachtert M.",1,3]
[2,"Berghs H.",null,"Renty P.",1,3,null,"Renty P.",null,"Berghs H.",2,2]
[3,"Cop C.",null,"Neefs J.",3,1,null,"Neefs J.",null,"Cop C.",1,3]
[4,"Crauwels F.",null,"Mathé M.",3,1,null,"Mathé M.",null,"Crauwels F.",2,2]
[5,"Roofthoofd J.",null,"De Groot J.",2,2,null,"De Groot J.",null,"Roofthoofd J.",2,2]
[]
[null,"Ronde 9",null,"25/01/2012.",null,null,null,"Ronde 18",null,"18/04/2012."]
[1,"De Groot J.",null,"Verachtert M.",1,3,null,"Verachtert M.",null,"De Groot J.",1,3]
[2,"Mathé M.",null,"Roofthoofd J.",3,1,null,"Roofthoofd J.",null,"Mathé M.",2,2]
[3,"Neefs J.",null,"Crauwels F.",2,2,null,"Crauwels F.",null,"Neefs J.",2,2]
[4,"Renty P.",null,"Cop C.",2,2,null,"Cop C.",null,"Renty P.",2,2]
[5,"Pynaerts H.",null,"Berghs H.",1,3,null,"Berghs H.",null,"Pynaerts H.",3,1]

{"sheet":"Kal.R2B","index":7,"n_rows":64,"n_cols":12,"rows_kept":64,"cut":false,"hidden":false,"merged":[]}
[null,"REEKS 2B",null,"2011 - 2012 CK"]
[]
[null,"Ronde 1",null,"9/11/2011.",null,null,null,"Ronde 10",null,"8/02/2011."]
[1,"Geerts H.",null,"V. Dingenen",3,1,null,"V. Dingenen",null,"Geerts H.",3,1]
[2,"Geerts P.",null,"Soetewey J.",0,0,null,"Soetewey J.",null,"Koks P.",0,0]
[3,"Geylen L.",null,"De Jonghe J.",3,1,null,"De Jonghe J.",null,"Geylen L.",3,1]
[4,"Kerkhofs J.",null,"Mertens S.",3,1,null,"Mertens S.",null,"Kerkhofs J.",1,3]
[5,"Kuti K.",null,"Lemmens L.",3,1,null,"Lemmens L.",null,"Kuti K.",2,2]
[]
[null,"Ronde 2",null,"16/11/2011.",null,null,null,"Ronde 11",null,"15/02/2012."]
[1,"V. Dingenen",null,"Lemmens L.",3,1,null,"Lemmens L.",null,"V. Dingenen",1,3]
[2,"Mertens S.",null,"Kuti K.",1,3,null,"Kuti K.",null,"Mertens S.",3,1]
[3,"De Jonghe J.",null,"Kerkhofs J.",1,3,null,"Kerkhofs J.",null,"De Jonghe J.",3,1]
[4,"Soetewey J.",null,"Geylen L.",1,3,null,"Geylen L.",null,"Soetewey J.",3,1]
[5,"Geerts H.",null,"Geerts P.",0,0,null,"Koks P.",null,"Geerts H.",0,0]
[]
[null,"Ronde 3",null,"23/11/2011.",null,null,null,"Ronde 12",null,"29/02/2012."]
[1,"Geerts P.",null,"V. Dingenen",0,0,null,"V. Dingenen",null,"Koks P.",0,0]
[2,"Geylen L.",null,"Geerts H.",3,1,null,"Geerts H.",null,"Geylen L.",2,2]
[3,"Kerkhofs J.",null,"Soetewey J.",3,1,null,"Soetewey J.",null,"Kerkhofs J.",1,3]
[4,"Kuti K.",null,"De Jonghe J.",1,3,null,"De Jonghe J.",null,"Kuti K.",2,2]
[5,"Lemmens L.",null,"Mertens S.",2,2,null,"Mertens S.",null,"Lemmens L.",3,1]
[]
[null,"Ronde 4",null,"30/11/2011.",null,null,null,"Ronde 13",null,"7/03/2012."]
[1,"V. Dingenen",null,"Mertens S.",3,1,null,"Mertens S.",null,"V. Dingenen",2,2]
[2,"De Jonghe J.",null,"Lemmens L.",1,3,null,"Lemmens L.",null,"De Jonghe J.",2,2]
[3,"Soetewey J.",null,"Kuti K.",2,2,null,"Kuti K.",null,"Soetewey J.",3,1]
[4,"Geerts H.",null,"Kerkhofs J.",3,1,null,"Kerkhofs J.",null,"Geerts H.",1,3]
[5,"Geerts P.",null,"Geylen L.",0,0,null,"Geylen L.",null,"Koks P.",0,0]
[]
[null,"Ronde 5",null,"14/12/2011.",null,null,null,"Ronde 14",null,"14/03/2012."]
[1,"Geylen L.",null,"V. Dingenen",1,3,null,"V. Dingenen",null,"Geylen L.",2,2]
[2,"Kerkhofs J.",null,"Geerts P.",0,0,null,"Koks P.",null,"Kerkhofs J.",0,0]
[3,"Kuti K.",null,"Geerts H.",1,3,null,"Geerts H.",null,"Kuti K.",3,1]
[4,"Lemmens L.",null,"Soetewey J.",2,2,null,"Soetewey J.",null,"Lemmens L.",2,2]
[5,"Mertens S.",null,"De Jonghe J.",3,1,null,"De Jonghe J.",null,"Mertens S.",1,3]
[]
[null,"Ronde 6",null,"21/12/2011.",null,null,null,"Ronde 15",null,"21/03/2012."]
[1,"V. Dingenen",null,"De Jonghe J.",3,1,null,"De Jonghe J.",null,"V. Dingenen",1,3]
[2,"Soetewey J.",null,"Mertens S.",2,2,null,"Mertens S.",null,"Soetewey J.",3,1]
[3,"Geerts H.",null,"Lemmens L.",3,1,null,"Lemmens L.",null,"Geerts H.",1,3]
[4,"Geerts P.",null,"Kuti K.",0,0,null,"Kuti K.",null,"Koks P.",0,0]
[5,"Geylen L.",null,"Kerkhofs J.",3,1,null,"Kerkhofs J.",null,"Geylen L.",1,3]
[]
[null,"Ronde 7",null,"11/01/2012.",null,null,null,"Ronde 16",null,"4/04/2012."]
[1,"Kerkhofs J.",null,"V. Dingenen",3,1,null,"V. Dingenen",null,"Kerkhofs J.",1,3]
[2,"Kuti K.",null,"Geylen L.",3,1,null,"Geylen L.",null,"Kuti K.",1,3]
[3,"Lemmens L.",null,"Geerts P.",0,0,null,"Koks P.",null,"Lemmens L.",0,0]
[4,"Mertens S.",null,"Geerts H.",3,1,null,"Geerts H.",null,"Mertens S.",2,2]
[5,"De Jonghe J.",null,"Soetewey J.",1,3,null,"Soetewey J.",null,"De Jonghe J.",2,2]
[]
[null,"Ronde 8",null,"18/01/2012.",null,null,null,"Ronde 17",null,"11/04/2012."]
[1,"V. Dingenen",null,"Soetewey J.",3,1,null,"Soetewey J.",null,"V. Dingenen",1,3]
[2,"Geerts H.",null,"De Jonghe J.",3,1,null,"De Jonghe J.",null,"Geerts H.",1,3]
[3,"Geerts P.",null,"Mertens S.",0,0,null,"Mertens S.",null,"Koks P.",0,0]
[4,"Geylen L.",null,"Lemmens L.",2,2,null,"Lemmens L.",null,"Geylen L.",2,2]
[5,"Kerkhofs J.",null,"Kuti K.",1,3,null,"Kuti K.",null,"Kerkhofs J.",3,1]
[]
[null,"Ronde 9",null,"25/01/2012.",null,null,null,"Ronde 18",null,"18/04/2012."]
[1,"Kuti K.",null,"V. Dingenen",1,3,null,"V. Dingenen",null,"Kuti K.",3,1]
[2,"Lemmens L.",null,"Kerkhofs J.",2,2,null,"Kerkhofs J.",null,"Lemmens L.",0,3]
[3,"Mertens S.",null,"Geylen L.",2,2,null,"Geylen L.",null,"Mertens S.",3,1]
[4,"De Jonghe J.",null,"Geerts P.",0,0,null,"Koks P.",null,"De Jonghe J.",0,0]
[5,"Soetewey J.",null,"Geerts H.",1,3,null,"Geerts H.",null,"Soetewey J.",3,1]

{"sheet":"Kal.R3","index":8,"n_rows":64,"n_cols":12,"rows_kept":64,"cut":false,"hidden":false,"merged":[]}
[null,"REEKS 3",null,"2011-2012 CK"]
[]
[null,"Ronde 1",null,"9/11/2011.",null,null,null,"Ronde 10",null,"8/02/2011."]
[1,"Brants R.",null,"Wouters F.",1,3,null,"Wouters F.",null,"Brants R.",3,1]
[2,"Daponte P.",null,"Meulemeester",1,3,null,"Meulemeester",null,"Daponte P.",1,3]
[3,"Vingerhoets W.",null,"Mertens F.",1,3,null,"Mertens F.",null,"Vingerhoets W.",3,1]
[4,"Hofman F.",null,"Meeus J.",2,2,null,"Meeus J.",null,"Hofman F.",1,3]
[5,"Kees F.",null,"Lemeire D.",0,0,null,"Lemeire D.",null,"Hellemans R.",3,1]
[]
[null,"Ronde 2",null,"16/11/2011.",null,null,null,"Ronde 11",null,"15/02/2012."]
[1,"Wouters F.",null,"Lemeire D.",3,1,null,"Lemeire D.",null,"Wouters F.",1,3]
[2,"Meeus J.",null,"Kees F.",0,0,null,"Hellemans R.",null,"Meeus J.",2,2]
[3,"Mertens F.",null,"Hofman F.",1,3,null,"Hofman F.",null,"Mertens F.",3,1]
[4,"Meulemeester",null,"Vingerhoets W.",2,2,null,"Vingerhoets W.",null,"Meulemeester",1,3]
[5,"Brants R.",null,"Daponte P.",1,3,null,"Daponte P.",null,"Brants R.",3,1]
[]
[null,"Ronde 3",null,"23/11/2011.",null,null,null,"Ronde 12",null,"29/02/2012."]
[1,"Daponte P.",null,"Wouters F.",1,3,null,"Wouters F.",null,"Daponte P.",3,1]
[2,"Vingerhoets W.",null,"Brants R.",2,2,null,"Brants R.",null,"Vingerhoets W.",3,1]
[3,"Hofman F.",null,"Meulemeester",3,1,null,"Meulemeester",null,"Hofman F.",3,1]
[4,"Kees F.",null,"Mertens F.",0,0,null,"Mertens F.",null,"Hellemans R.",3,1]
[5,"Lemeire D.",null,"Meeus J.",3,1,null,"Meeus J.",null,"Lemeire D.",2,2]
[]
[null,"Ronde 4",null,"30/11/2011.",null,null,null,"Ronde 13",null,"7/03/2012."]
[1,"Wouters F.",null,"Meeus J.",3,1,null,"Meeus J.",null,"Wouters F.",1,3]
[2,"Mertens F.",null,"Lemeire D.",1,3,null,"Lemeire D.",null,"Mertens F.",3,1]
[3,"Meulemeester",null,"Kees F.",0,0,null,"Hellemans R.",null,"Meulemeester",2,2]
[4,"Brants R.",null,"Hofman F.",1,3,null,"Hofman F.",null,"Brants R.",1,3]
[5,"Daponte P.",null,"Vingerhoets W.",2,2,null,"Vingerhoets W.",null,"Daponte P.",2,2]
[]
[null,"Ronde 5",null,"14/12/2011.",null,null,null,"Ronde 14",null,"14/03/2012."]
[1,"Vingerhoets W.",null,"Wouters F.",1,3,null,"Wouters F.",null,"Vingerhoets W.",3,1]
[2,"Hofman F.",null,"Daponte P.",3,1,null,"Daponte P.",null,"Hofman F.",1,3]
[3,"Kees F.",null,"Brants R.",0,0,null,"Brants R.",null,"Hellemans R.",2,2]
[4,"Lemeire D.",null,"Meulemeester",3,1,null,"Meulemeester",null,"Lemeire D.",1,3]
[5,"Meeus J.",null,"Mertens F.",1,3,null,"Mertens F.",null,"Meeus J.",3,1]
[]
[null,"Ronde 6",null,"21/12/2011.",null,null,null,"Ronde 15",null,"21/03/2012."]
[1,"Wouters F.",null,"Mertens F.",1,3,null,"Mertens F.",null,"Wouters F.",3,1]
[2,"Meulemeester",null,"Meeus J.",3,1,null,"Meeus J.",null,"Meulemeester",3,1]
[3,"Brants R.",null,"Lemeire D.",1,3,null,"Lemeire D.",null,"Brants R.",1,3]
[4,"Daponte P.",null,"Kees F.",0,0,null,"Hellemans R.",null,"Daponte P.",3,1]
[5,"Vingerhoets W.",null,"Hofman F.",1,3,null,"Hofman F.",null,"Vingerhoets W.",3,1]
[]
[null,"Ronde 7",null,"11/01/2012.",null,null,null,"Ronde 16",null,"4/04/2012."]
[1,"Hofman F.",null,"Wouters F.",1,3,null,"Wouters F.",null,"Hofman F.",1,3]
[2,"Kees F.",null,"Vingerhoets W.",0,0,null,"Vingerhoets W.",null,"Hellemans R.",1,3]
[3,"Lemeire D.",null,"Daponte P.",3,1,null,"Daponte P.",null,"Lemeire D.",2,2]
[4,"Meeus J.",null,"Brants R.",3,1,null,"Brants R.",null,"Meeus J.",1,3]
[5,"Mertens F.",null,"Meulemeester",3,1,null,"Meulemeester",null,"Mertens F.",3,1]
[]
[null,"Ronde 8",null,"18/01/2012.",null,null,null,"Ronde 17",null,"11/04/2012."]
[1,"Wouters F.",null,"Meulemeester",3,1,null,"Meulemeester",null,"Wouters F.",1,3]
[2,"Brants R.",null,"Mertens F.",3,1,null,"Mertens F.",null,"Brants R.",1,3]
[3,"Daponte P.",null,"Meeus J.",1,3,null,"Meeus J.",null,"Daponte P.",2,2]
[4,"Vingerhoets W.",null,"Lemeire D.",1,3,null,"Lemeire D.",null,"Vingerhoets W.",3,1]
[5,"Hofman F.",null,"Kees F.",0,0,null,"Hellemans R.",null,"Hofman F.",1,3]
[]
[null,"Ronde 9",null,"25/01/2012.",null,null,null,"Ronde 18",null,"18/04/2012."]
[1,"Kees F.",null,"Wouters F.",0,0,null,"Wouters F.",null,"Hellemans R.",3,1]
[2,"Lemeire D.",null,"Hofman F.",2,2,null,"Hofman F.",null,"Lemeire D.",3,1]
[3,"Meeus J.",null,"Vingerhoets W.",3,1,null,"Vingerhoets W.",null,"Meeus J.",2,2]
[4,"Mertens F.",null,"Daponte P.",1,3,null,"Daponte P.",null,"Mertens F.",3,1]
[5,"Meulemeester",null,"Brants R.",2,2,null,"Brants R.",null,"Meulemeester",3,1]

{"sheet":"Kal.R4","index":9,"n_rows":89,"n_cols":12,"rows_kept":89,"cut":false,"hidden":false,"merged":[]}
[null,"REEKS 4",null,"2011 - 2012 CK"]
[]
[null,"Ronde 1",null,"9/11/2011.",null,null,null,"Ronde 12",null,"29/02/2012."]
[1,"Ilegems J.",null,"bye",null,null,null,"bye",null,"Ilegems J."]
[2,"Brack Y.",null,"Van D.Branden",3,1,null,"Van D.Branden",null,"Brack Y.",0,3]
[3,"Lens L.",null,"Vervaeke P.",3,1,null,"Vervaeke P.",null,"Lens L.",3,1]
[4,"Leys F.",null,"Van Tendeloo",3,1,null,"Van Tendeloo",null,"Leys F.",1,3]
[5,"Renders J.",null,"Uyt d.Bogaard",3,1,null,"Uyt d.Bogaard",null,"Renders J.",2,2]
[6,"Roelants W.",null,"Ronken C.",1,3,null,"Ronken C.",null,"Roelants W.",3,1]
[]
[null,"Ronde 2",null,"16/11/2011.",null,null,null,"Ronde 13",null,"7/03/2012."]
[1,"bye",null,"Lens L.",null,null,null,"Lens L.",null,"bye"]
[2,"Van D.Branden",null,"Ronken C.",1,3,null,"Ronken C.",null,"Van D.Branden",3,1]
[3,"Uyt d.Bogaard",null,"Roelants W.",3,1,null,"Roelants W.",null,"Uyt d.Bogaard",1,3]
[4,"Van Tendeloo",null,"Renders J.",1,3,null,"Renders J.",null,"Van Tendeloo",3,1]
[5,"Vervaeke P.",null,"Leys F.",1,3,null,"Leys F.",null,"Vervaeke P.",1,3]
[6,"Brack Y.",null,"Ilegems J.",1,3,null,"Ilegems J.",null,"Brack Y.",1,3]
[]
[null,"Ronde 3",null,"23/11/2011.",null,null,null,"Ronde 14",null,"14/03/2012."]
[1,"Leys F.",null,"bye",null,null,null,"bye",null,"Leys F."]
[2,"Ilegems J.",null,"Van D.Branden",3,1,null,"Van D.Branden",null,"Ilegems J.",2,2]
[3,"Lens L.",null,"Brack Y.",1,3,null,"Brack Y.",null,"Lens L.",3,1]
[4,"Renders J.",null,"Vervaeke P.",3,1,null,"Vervaeke P.",null,"Renders J.",1,3]
[5,"Roelants W.",null,"Van Tendeloo",2,2,null,"Van Tendeloo",null,"Roelants W.",1,3]
[6,"Ronken C.",null,"Uyt d.Bogaard",3,1,null,"Uyt d.Bogaard",null,"Ronken C.",1,3]
[]
[null,"Ronde 4",null,"30/11/2011.",null,null,null,"Ronde 15",null,"21/03/2012."]
[1,"bye",null,"Renders J.",null,null,null,"Renders J.",null,"bye"]
[2,"Van D.Branden",null,"Uyt d.Bogaard",3,1,null,"Uyt d.Bogaard",null,"Van D.Branden",3,1]
[3,"Van Tendeloo",null,"Ronken C.",1,3,null,"Ronken C.",null,"Van Tendeloo",3,1]
[4,"Vervaeke P.",null,"Roelants W.",3,1,null,"Roelants W.",null,"Vervaeke P.",3,1]
[5,"Brack Y.",null,"Leys F.",1,3,null,"Leys F.",null,"Brack Y.",3,1]
[6,"Ilegems J.",null,"Lens L.",3,1,null,"Lens L.",null,"Ilegems J.",1,3]
[]
[null,"Ronde 5",null,"14/12/2011.",null,null,null,"Ronde 16",null,"4/04/2012."]
[1,"Roelants W.",null,"bye",null,null,null,"bye",null,"Roelants W."]
[2,"Lens L.",null,"Van D.Branden",1,3,null,"Van D.Branden",null,"Lens L.",0,3]
[3,"Leys F.",null,"Ilegems J.",1,3,null,"Ilegems J.",null,"Leys F.",3,1]
[4,"Renders J.",null,"Brack Y.",3,1,null,"Brack Y.",null,"Renders J.",3,1]
[5,"Ronken C.",null,"Vervaeke P.",3,1,null,"Vervaeke P.",null,"Ronken C.",1,3]
[6,"Uyt d.Bogaard",null,"Van Tendeloo",1,3,null,"Van Tendeloo",null,"Uyt d.Bogaard",3,1]
[]
[null,"Ronde 6",null,"21/12/2011.",null,null,null,"Ronde 17",null,"11/04/2012."]
[1,"bye",null,"Ronken C.",null,null,null,"Ronken C.",null,"bye"]
[2,"Van D.Branden",null,"Van Tendeloo",3,1,null,"Van Tendeloo",null,"Van D.Branden",3,1]
[3,"Vervaeke P.",null,"Uyt d.Bogaard",1,3,null,"Uyt d.Bogaard",null,"Vervaeke P.",3,1]
[4,"Brack Y.",null,"Roelants W.",3,1,null,"Roelants W.",null,"Brack Y.",1,3]
[5,"Ilegems J.",null,"Renders J.",3,1,null,"Renders J.",null,"Ilegems J.",1,3]
[6,"Lens L.",null,"Leys F.",1,3,null,"Leys F.",null,"Lens L.",3,1]
[]
[null,"Ronde 7",null,"11/01/2012.",null,null,null,"Ronde 18",null,"18/04/2012."]
[1,"Uyt d.Bogaard",null,"bye",null,null,null,"bye",null,"Uyt d.Bogaard"]
[2,"Leys F.",null,"Van D.Branden",3,1,null,"Van D.Branden",null,"Leys F.",3,1]
[3,"Renders J.",null,"Lens L.",3,1,null,"Lens L.",null,"Renders J.",3,1]
[4,"Roelants W.",null,"Ilegems J.",1,3,null,"Ilegems J.",null,"Roelants W.",3,1]
[5,"Ronken C.",null,"Brack Y.",3,1,null,"Brack Y.",null,"Ronken C.",3,0]
[6,"Van Tendeloo",null,"Vervaeke P.",1,3,null,"Vervaeke P.",null,"Van Tendeloo",3,1]
[]
[null,"Ronde 8",null,"18/01/2012.",null,null,null,"Ronde 19",null,"25/04/2012."]
[1,"bye",null,"Van Tendeloo",null,null,null,"Van Tendeloo",null,"bye"]
[2,"Van D.Branden",null,"Vervaeke P.",0,3,null,"Vervaeke P.",null,"Van D.Branden",1,3]
[3,"Brack Y.",null,"Uyt d.Bogaard",3,1,null,"Uyt d.Bogaard",null,"Brack Y.",1,3]
[4,"Ilegems J.",null,"Ronken C.",3,1,null,"Ronken C.",null,"Ilegems J.",3,1]
[5,"Lens L.",null,"Roelants W.",3,1,null,"Roelants W.",null,"Lens L.",3,1]
[6,"Leys F.",null,"Renders J.",1,3,null,"Renders J.",null,"Leys F.",3,1]
[]
[null,"Ronde 9",null,"25/01/2012.",null,null,null,"Ronde 20",null,"9/05/2012."]
[1,"Vervaeke P.",null,"bye",null,null,null,"bye",null,"Vervaeke P."]
[2,"Renders J.",null,"Van D.Branden",1,3,null,"Van D.Branden",null,"Renders J.",3,1]
[3,"Roelants W.",null,"Leys F.",1,3,null,"Leys F.",null,"Roelants W.",3,1]
[4,"Ronken C.",null,"Lens L.",2,2,null,"Lens L.",null,"Ronken C.",1,3]
[5,"Uyt d.Bogaard",null,"Ilegems J.",1,3,null,"Ilegems J.",null,"Uyt d.Bogaard",3,1]
[6,"Van Tendeloo",null,"Brack Y.",1,3,null,"Brack Y.",null,"Van Tendeloo",3,1]
[]
[null,"Ronde 10",null,"8/02/2011.",null,null,null,"Ronde 21",null,"16/05/2012."]
[1,"Van D.Branden",null,"bye",null,null,null,"bye",null,"Van D.Branden"]
[2,"Brack Y.",null,"Vervaeke P.",3,1,null,"Vervaeke P.",null,"Brack Y.",1,3]
[3,"Ilegems J.",null,"Van Tendeloo",3,1,null,"Van Tendeloo",null,"Ilegems J.",1,3]
[4,"Lens L.",null,"Uyt d.Bogaard",2,2,null,"Uyt d.Bogaard",null,"Lens L.",3,1]
[5,"Leys F.",null,"Ronken C.",1,3,null,"Ronken C.",null,"Leys F.",3,1]
[6,"Renders J.",null,"Roelants W.",3,1,null,"Roelants W.",null,"Renders J.",1,3]
[]
[null,"Ronde 11",null,"15/02/2012.",null,null,null,"Ronde 22",null,"30/05/2012."]
[1,"bye",null,"Brack Y.",null,null,null,"Brack Y.",null,"bye"]
[2,"Roelants W.",null,"Van D.Branden",1,3,null,"Van D.Branden",null,"Roelants W.",3,1]
[3,"Ronken C.",null,"Renders J.",3,1,null,"Renders J.",null,"Ronken C.",2,2]
[4,"Uyt d.Bogaard",null,"Leys F.",1,3,null,"Leys F.",null,"Uyt d.Bogaard",3,1]
[5,"Van Tendeloo",null,"Lens L.",1,3,null,"Lens L.",null,"Van Tendeloo",3,1]
[6,"Vervaeke P.",null,"Ilegems J.",1,3,null,"Ilegems J.",null,"Vervaeke P.",3,1]